Departmental Family,Entity,Date,Expense Type,Expense Area,Supplier,Transaction Number,Amount,Description
Cabinet Office,CABINET OFFICE,02/03/2015,ADDITIONSAUC F/H NON RES BLDGS,CABINET OFFICE ESTATE AGREED BY FD - DEL PROGRAMME,BOUYGUES E&S FM UK LTD,3000057917,104764.80,Facilities Management Services
Cabinet Office,CABINET OFFICE,02/03/2015,CONSULTANTS VAT RECOVERABLE,ERG MAJOR PROJECTS TEAM,DELOITTE MCS LTD,3000057902,114902.36,Research support costs for procurement planning exercise 
Cabinet Office,CABINET OFFICE,02/03/2015,ALL OTHER TRAINING AND DVEVELOPMENT NON VAT RECOVERABLE,FAST STREAM COSTS CS RESOURCING,HMRC,3000057904,252731.40,Fast stream programme costs
Cabinet Office,CABINET OFFICE,02/03/2015,OTHER IS IT COSTS VAT RECOV,CCS RESILIENT TELECOMMUNICATIONS,ORDNANCE SURVEY,3000057918,411233.09,Resilience Direct Development of Mapping
Cabinet Office,CABINET OFFICE,02/03/2015,OTHER IS IT COSTS VAT RECOV,FLEX,HM TREASURY,3000057913,3047190.32,IT costs - Flex contract
Cabinet Office,CABINET OFFICE,02/03/2015,RESOURCE GRANTS PRIVATE SECTOR,COMMUNITY FIRST,COMMUNITY DEVELOPMENT FOUNDATION,3000057938,3470750.00,Neighbourhood Matched Fund 
Cabinet Office,CABINET OFFICE,04/03/2015,RESOURCE GRANTS PRIVATE SECTOR,OPEN DATA PROGRAMME,OPEN ADDRESSES LTD,1001199,382800.00,Delivery of exploration and discovery phase of open data project 
Cabinet Office,Crown Commercial Service,06/03/2015,Bravo Licence Costs,Enablement Projects,BravoSolution UK Ltd,PINORD 485,41650.00,Licences for spend analytics
Cabinet Office,Crown Commercial Service,06/03/2015,Maintenance & Repairs - IT,Enablement Projects,IBM UNITED KINGDOM LTD,PINORD 486,42564.00,eSourcing system licences 
Cabinet Office,Crown Commercial Service,06/03/2015,Maintenance & Repairs - IT,Enablement Projects,IBM UNITED KINGDOM LTD,PINORD 490,42564.00,eSourcing system licences 
Cabinet Office,CABINET OFFICE,06/03/2015,CONTRACTORS & STAFF SUBSTITUTIONS,GDS BUS DEV CONSULTANT AND STAFF COSTS,SKYSCAPE CLOUD SERVICES LTD,3000057940,147602.34,Hosting Service for GOV.UK
Cabinet Office,CABINET OFFICE,06/03/2015,STAFF RELATED COSTS,SME CONTRACT MANAGMENT LEAD,HM REVENUE & CUSTOMS,3000520,454548.00,Facilities Management Services
Cabinet Office,CABINET OFFICE,11/03/2015,RESOURCE GRANTS LOCAL AUTHORIT,GPU POLICY AND STRATEGY,LEEDS CITY COUNCIL,3000057949,40000.00,One Public Estate Grant to Birmingham City Council
Cabinet Office,CABINET OFFICE,11/03/2015,SOFTWARE LEASE/LICENSE,ERTP ERO DIGITAL,DEMOCRACY COUNTS,3000057944,47970.00,Individual Electoral Registration change requests costs to the Electoral Management System
Cabinet Office,CABINET OFFICE,11/03/2015,RESOURCE GRANTS PRIVATE SECTOR,ERTP ERO CUSTOMER REGISTRATION,CITIZENS UK,3000057947,50000.00,Funding to support activities to Maximise the Electoral Register
Cabinet Office,CABINET OFFICE,11/03/2015,RESOURCE GRANTS PRIVATE SECTOR,ERTP ERO CUSTOMER REGISTRATION,MENCAP,3000057943,80000.00,Funding to support activities to Maximise the Electoral Register
Cabinet Office,CABINET OFFICE,11/03/2015,RESOURCE GRANTS PRIVATE SECTOR,ERTP ERO CUSTOMER REGISTRATION,UK YOUTH,3000057946,90000.00,Funding to support activities to Maximise the Electoral Register
Cabinet Office,CABINET OFFICE,11/03/2015,RESOURCE GRANTS LOCAL AUTHORIT,GPU POLICY AND STRATEGY,MANCHESTER CITY COUNCIL,3000057948,100000.00,One Public Estate Grant to Manchester City Council
Cabinet Office,CABINET OFFICE,11/03/2015,RESOURCE GRANTS PRIVATE SECTOR,ERTP ERO CUSTOMER REGISTRATION,HOMELESS LINK,3000057951,100000.00,Funding to support activities to Maximise the Electoral Register
Cabinet Office,Crown Commercial Service,12/03/2015,Legal Fees,Legal Services,Treasury Solicitors,PINORD 545,29264.33,Legal services 
Cabinet Office,CABINET OFFICE,12/03/2015,FM CONTRACT VARIABLE,GPU RESIDUAL ESTATE ADMIN,MCFLETCH LTD,3000057955,30007.50,Estate services 
Cabinet Office,Crown Commercial Service,12/03/2015,Bravo Licence Costs,Enablement Projects,BravoSolution UK Ltd,PINORD 543,41650.00,Licences for spend analytics
Cabinet Office,Crown Commercial Service,12/03/2015,Legal Fees,Legal Services,Treasury Solicitors,PINORD 544,47235.20,Legal services
Cabinet Office,CABINET OFFICE,12/03/2015,SOFTWARE LEASE/LICENSE,ERTP ERO DIGITAL,HALAROSE LTD,3000057956,96676.80,Individual Electoral Registration change requests costs to the Electoral Management System
Cabinet Office,Crown Commercial Service,12/03/2015,Legal Fees,Legal Services,Treasury Solicitors,PINORD 556,282900.64,Legal services
Cabinet Office,CABINET OFFICE,13/03/2015,CONTRACTORS & STAFF SUBSTITUTIONS,OFFICE FOR CIVIL SOCIETY,RETHINK RECRUITMENT SOLUTIONS LTD,3000057957,27432.00,Transformation and Production Management Support
Cabinet Office,CABINET OFFICE,13/03/2015,OTHER IS IT COSTS VAT RECOV,GDS TRANSFORMATION,COLQUHOUN INFORMATION TECHNOLOGY LTD TRADING AS CALBA,3000057962,29070.00,IT support for GDS projects 
Cabinet Office,CABINET OFFICE,13/03/2015,STAFF TRAINING,CERT,CODENOMICON,2000597,40300.00,Cyber resilience services and analysis tools 
Cabinet Office,CABINET OFFICE,13/03/2015,RESOURCE GRANTS LOCAL AUTHORIT,ERTP ERO CUSTOMER REGISTRATION,GLASGOW CITY COUNCIL,3000057958,41089.86,Funding for Electoral Registration Officers to address concerns around electoral integrity and promote confidence in the polls
Cabinet Office,CABINET OFFICE,13/03/2015,RESOURCE GRANTS PRIVATE SECTOR,ERTP ERO CUSTOMER REGISTRATION,ACTIVE CITIZENS FE,3000057964,60000.00,Funding to support activities to Maximise the Electoral Register
Cabinet Office,CABINET OFFICE,13/03/2015,STAFF TRAINING,CERT,ESCAL INSTITUTE OF ADVANCED TECHNOLOGIES INC,2000595,101239.17,Cyber security training 
Cabinet Office,CABINET OFFICE,13/03/2015,OTHER IS IT COSTS VAT RECOV,ERTP ERO DIGITAL,DUMFRIES & GALLOWAY,3000057961,160000.00,Individual Electoral Registration costs
Cabinet Office,CABINET OFFICE,13/03/2015,OTHER IS IT COSTS VAT RECOV,ISA 2 Prog,BANK OF ENGLAND,1001206,333333.33,Cyber Security Banking Guide
Cabinet Office,CABINET OFFICE,16/03/2015,OTHER IS IT COSTS VAT RECOV,ERTP IER LIVE SERVICE,KAINOS SOFTWARE LTD,3000057965,35500.00,Individual Electoral Registration Live Service development costs
Cabinet Office,CABINET OFFICE,16/03/2015,CONSULTANTS VAT RECOVERABLE,MUTUALS,KPMG,3000057968,52800.00,Support provided under the Delivering Differently Programme for Walsall Council
Cabinet Office,CABINET OFFICE,16/03/2015,OTHER IS IT COSTS VAT RECOV,GDS ID ASSURANCE,SKYSCAPE CLOUD SERVICES LTD,3000057966,72169.49,Cost of identities under the Identity Provider Call-Off Contract
Cabinet Office,Crown Commercial Service,18/03/2015,WSDS Maintenance & Repairs,Whitehall Standby Dist Systems,Cofely,PINORD 642,33294.57,Whitehall heating systems management
Cabinet Office,CABINET OFFICE,18/03/2015,OTHER IS IT COSTS VAT RECOV,ERTP IER LIVE SERVICE,KAINOS SOFTWARE LTD,3000057977,35500.00,Individual Electoral Registration Live Service development costs
Cabinet Office,CABINET OFFICE,18/03/2015,OTHER IS IT COSTS VAT RECOV,ERTP ERO DIGITAL,CENTRAL SCOTLAND VALUATION JOINT BOARD,3000057973,36660.12,Individual Electoral Registration costs
Cabinet Office,CABINET OFFICE,18/03/2015,SUB-CONTRACTED TRAINING COURSE,ERTP ERO DELIVERY,IDOX SOFTWARE LTD,3000057980,39081.92,Election Management Systems training for Individual Electoral Registration ahead of the General Election
Cabinet Office,CABINET OFFICE,18/03/2015,RESOURCE GRANTS LOCAL AUTHORIT,GPU POLICY AND STRATEGY,BIRMINGHAM CITY COUNCIL,3000057971,40000.00,One Public Estate Grant to Leeds City Council
Cabinet Office,CABINET OFFICE,18/03/2015,RESOURCE GRANTS LOCAL AUTHORIT,GPU POLICY AND STRATEGY,LONDON BOROUGH OF CROYDON,3000057972,40000.00,One Public Estate Grant to London Borough of Croydon
Cabinet Office,Crown Commercial Service,18/03/2015,WSDS Maintenance & Repairs,Whitehall Standby Dist Systems,Cofely,PINORD 640,42218.92,Whitehall heating systems management
Cabinet Office,CABINET OFFICE,18/03/2015,OTHER IS IT COSTS VAT RECOV,ERTP IER LIVE SERVICE,FCO SERVICES,3000057974,80610.00,Individual Electoral Registration Live Service running costs
Cabinet Office,CABINET OFFICE,18/03/2015,RESOURCE GRANTS PRIVATE SECTOR,ERTP ERO CUSTOMER REGISTRATION,OPERATION BLACK VOTE,1001210,85000.00,Funding to support activities to Maximise the Electoral Register
Cabinet Office,CABINET OFFICE,18/03/2015,RESOURCE GRANTS PRIVATE SECTOR,TECHNICAL ASSISTANCE,SOCIAL INVESTMENT BUSINESS,3000057978,1418911.00,Support to build the capacity of social ventures so they are better equipped to access to social investment and compete for and deliver public service contracts
Cabinet Office,CABINET OFFICE,20/03/2015,RESOURCE GRANTS LOCAL AUTHORIT,ELECTORAL REGISTRATION TRANSFORMATION PROGRAMME,CHESHIRE EAST BOROUGH COUNCIL,3000058174,25222.00,Funding to support the completeness and accuracy of the Electoral Register ahead of the General Election
Cabinet Office,CABINET OFFICE,20/03/2015,CHILDCARE VOUCHERS,HR REWARD AND EMPLOYEE RELATIONS TEAM,ACCOR TA EDENRED,1001214,27734.77,Childcare vouchers
Cabinet Office,CABINET OFFICE,20/03/2015,RESOURCE GRANTS LOCAL AUTHORIT,ELECTORAL REGISTRATION TRANSFORMATION PROGRAMME,CARMARTHENSHIRE COUNTY COUNCIL,3000058188,31186.00,Funding to support the completeness and accuracy of the Electoral Register ahead of the General Election
Cabinet Office,CABINET OFFICE,20/03/2015,RESOURCE GRANTS PRIVATE SECTOR,CHARITABLE GIVING,INSTITUTE OF FUNDRAISING,3000058191,31750.00,Grant to promote payroll giving through Payroll Giving Awards and Payroll Giving Quality Mark
Cabinet Office,CABINET OFFICE,20/03/2015,RESOURCE GRANTS LOCAL AUTHORIT,ELECTORAL REGISTRATION TRANSFORMATION PROGRAMME,ROTHERHAM METROPOLITAN BOROUGH COUNCIL,3000058167,34586.00,Funding to support the completeness and accuracy of the Electoral Register ahead of the General Election and Individual Electoral Registration costs
Cabinet Office,CABINET OFFICE,20/03/2015,RESOURCE GRANTS LOCAL AUTHORIT,ELECTORAL REGISTRATION TRANSFORMATION PROGRAMME,WYCOMBE DISTRICT COUNCIL,3000058189,35641.00,Funding to support the completeness and accuracy of the Electoral Register ahead of the General Election
Cabinet Office,CABINET OFFICE,20/03/2015,RESOURCE GRANTS LOCAL AUTHORIT,ELECTORAL REGISTRATION TRANSFORMATION PROGRAMME,NORTHUMBERLAND COUNTY COUNCIL,3000058168,41078.00,Funding to support the completeness and accuracy of the Electoral Register ahead of the General Election
Cabinet Office,CABINET OFFICE,20/03/2015,RESOURCE GRANTS LOCAL AUTHORIT,ELECTORAL REGISTRATION TRANSFORMATION PROGRAMME,COVENTRY CITY COUNCIL,3000058173,41350.00,Funding to support the completeness and accuracy of the Electoral Register ahead of the General Election
Cabinet Office,CABINET OFFICE,20/03/2015,RESOURCE GRANTS LOCAL AUTHORIT,ELECTORAL REGISTRATION TRANSFORMATION PROGRAMME,CITY & COUNCIL OF SWANSEA,3000058182,42208.00,Funding to support the completeness and accuracy of the Electoral Register ahead of the General Election
Cabinet Office,CABINET OFFICE,20/03/2015,RESOURCE GRANTS LOCAL AUTHORIT,ELECTORAL REGISTRATION TRANSFORMATION PROGRAMME,WAKEFIELD DISTRICT COUNCIL,3000058179,45463.00,Funding to support the completeness and accuracy of the Electoral Register ahead of the General Election
Cabinet Office,CABINET OFFICE,20/03/2015,RESOURCE GRANTS LOCAL AUTHORIT,ELECTORAL REGISTRATION TRANSFORMATION PROGRAMME,CORNWALL COUNCIL,3000058161,83740.00,Funding to support the completeness and accuracy of the Electoral Register ahead of the General Election
Cabinet Office,CABINET OFFICE,20/03/2015,RESOURCE GRANTS PRIVATE SECTOR,ERTP ERO CUSTOMER REGISTRATION,NATIONAL UNION OF STUDENTS OF THE UK,1001211,380000.00,Funding to support activities to Maximise the Electoral Register
Cabinet Office,CABINET OFFICE,20/03/2015,RESOURCE GRANTS PRIVATE SECTOR,CENTRE FOR SOCIAL ACTION,SOCIAL INVESTMENT BUSINESS,1001213,1458438.21,"Grant for the Centre for Social Action to identify and accelerate the development and spread of high impact social action initiatives. Social action is about people coming together to help improve their lives and solve the problems that are important in their communities. It can include volunteering, giving money, community action or simple everyday neighbourly acts"
Cabinet Office,CABINET OFFICE,20/03/2015,PENSIONS PAYROLL CONTRACTOR - FIXED FEE,SME CONTRACT MANAGMENT LEAD,MYCSP LTD,3000058157,2944547.41,Civil Service pension administration services
Cabinet Office,CABINET OFFICE,23/03/2015,CONTRACTORS & STAFF SUBSTITUTIONS,CO IT SYSTEMS,CAPITA BUSINESS SERVICES LTD,3000058194,26153.53,Interim IT Specialists 
Cabinet Office,CABINET OFFICE,23/03/2015,CONTRACTORS & STAFF SUBSTITUTIONS,ERG NEXT GENERATION SHARED SERVICES,CAPITA BUSINESS SERVICES LTD,3000058194,28367.94,Interim IT Specialists 
Cabinet Office,CABINET OFFICE,23/03/2015,CONTRACTORS & STAFF SUBSTITUTIONS,ELECTORAL REGISTRATION TRANSFORMATION PROGRAMME,CAPITA BUSINESS SERVICES LTD,3000058194,29402.05,Individual Electoral Registration costs
Cabinet Office,CABINET OFFICE,23/03/2015,CONTRACTORS & STAFF SUBSTITUTIONS,ERG ASSURANCE REVIEWS,CAPITA BUSINESS SERVICES LTD,3000058194,32153.37,Assurance Reviewers for major project reviews
Cabinet Office,CABINET OFFICE,23/03/2015,CONTRACTORS & STAFF SUBSTITUTIONS,ERG CROWN HOSTING,CAPITA BUSINESS SERVICES LTD,3000058194,42194.46,Interim IT Specialists 
Cabinet Office,CABINET OFFICE,24/03/2015,RESEARCH AND DEVELOPMENT (VAT RECOVERABLE),COF ELECTIONS DIVISION,LAW COMMISSION,3000058201,31250.00,Funding of the Law Commission's Review of Electoral Law 
Cabinet Office,CABINET OFFICE,24/03/2015,STAFF RELATED COSTS,HR CAPABILITY AND TALENT,HM REVENUE & CUSTOMS,3000526,34782.00,Civil Service Fast Steam Costs
Cabinet Office,CABINET OFFICE,24/03/2015,OTHER IS IT COSTS VAT RECOV,CERT,JIVE SOFTWARE INC,2000607,85025.00,Software Licences and Support
Cabinet Office,CABINET OFFICE,25/03/2015,COACHING AND MENTORING,FAST STREAM COSTS CS RESOURCING,SAID BUSINESS SCHOOL,3000058661,25000.00,Fast stream programme costs
Cabinet Office,CABINET OFFICE,25/03/2015,PUBLICITY ADVERTISING MEDIA,GREAT CAMPAIGN PROGRAMME,UK TRADE & INVESTMENT,3000058223,25000.00,GREAT Campaign
Cabinet Office,CABINET OFFICE,25/03/2015,CONSULTANTS VAT RECOVERABLE,DATA SHARING,INVOLVE,3000058587,25000.00,Support for Open Policy Making Process on Data to gain insight and views from external stakeholders 
Cabinet Office,CABINET OFFICE,25/03/2015,NON PRIME PROPERTY COSTS,GPU RESIDUAL ESTATE ADMIN,CBGA ROBSON LLP,3000058496,25219.20,Rent for accommodation 
Cabinet Office,CABINET OFFICE,25/03/2015,OTHER IS IT COSTS VAT RECOV,CERT,CGI IT UK LTD,3000058419,25989.00,IT Development for CERT UK
Cabinet Office,CABINET OFFICE,25/03/2015,SUB-CONTRACTED TRAINING COURSE,ERTP ERO DELIVERY,HALAROSE LTD,3000058570,26208.00,Election Management Systems training for Individual Electoral Registration ahead of the General Election
Cabinet Office,CABINET OFFICE,25/03/2015,CALL CHARGES,ICT SERVICES,VODAFONE LTD,3000058271,26590.59,Telecomms charges
Cabinet Office,CABINET OFFICE,25/03/2015,NON PRIME UTILITIES,PMO FACILITIES MANAGEMENT,BOUYGUES E&S FM UK LTD,3000058692,27472.32,Facilities Management Services
Cabinet Office,CABINET OFFICE,25/03/2015,RESOURCE GRANTS LOCAL AUTHORIT,ELECTORAL REGISTRATION TRANSFORMATION PROGRAMME,BRACKNELL FOREST BOROUGH COUNCIL,3000058428,27930.00,Funding to support the completeness and accuracy of the Electoral Register ahead of the General Election
Cabinet Office,CABINET OFFICE,25/03/2015,FM CONTRACT VARIABLE,FEM MISC,HM TREASURY,3000058487,28100.42,Facilities Management Services
Cabinet Office,CABINET OFFICE,25/03/2015,CONSULTANTS VAT RECOVERABLE,CENTRE FOR SOCIAL ACTION,THE BEHAVIOURAL INSIGHTS TEAM,3000058525,28125.00,Evaluation of Youth Social Action Fund
Cabinet Office,CABINET OFFICE,25/03/2015,OTHER IS IT COSTS VAT RECOV,CO IT SYSTEMS,VIGLEN LTD,3000058326,28285.95,Core Network Equipment costs 
Cabinet Office,CABINET OFFICE,25/03/2015,MANAGEMENT CONFERENCES,MANAGEMENT AND CENTRAL SUPPORT,DODS PARLIAMENTARY COMMUNICATION LTD,3000058454,28500.00,Civil Service Live costs 
Cabinet Office,CABINET OFFICE,25/03/2015,CONTRACTORS & STAFF SUBSTITUTIONS,ERG MAJOR PROJECTS TEAM,CAPITA BUSINESS SERVICES LTD,3000058641,29204.49,Assurance Reviewers for major project reviews
Cabinet Office,CABINET OFFICE,25/03/2015,LORD LIEUTENANTS EXPENSES,LORD LIEUTENANTS,LORD LIEUTENANT OF WEST YORKSHIRE,3000058633,29583.75,First quarter advance expense payment to Her Majesty's Lord Lieutenancy
Cabinet Office,CABINET OFFICE,25/03/2015,RESOURCE GRANTS PRIVATE SECTOR,ERTP ERO CUSTOMER REGISTRATION,VINSPIRED,3000058414,30000.00,Funding to support activities to Maximise the Electoral Register
Cabinet Office,CABINET OFFICE,25/03/2015,TELECOM SECURITY SERVICES,CCS RESILIENT TELECOMMUNICATIONS,MINISTRY OF DEFENCE,3000058452,30962.49,High Integrity Telecoms System Project Costs
Cabinet Office,CABINET OFFICE,25/03/2015,CONSULTANTS VAT RECOVERABLE,ROYAL MAIL SERVICE PENSIONS,GOVERNMENT ACTUARYS DEPARTMENT GAD,3000058506,31010.21,Actuarial services
Cabinet Office,CABINET OFFICE,25/03/2015,STATIONERY/ PUBLICATIONS/IT CONSUMABLES,CABINET OFFICE REPROGRAPHICS (EX GCDA),NRG GROUP UK LTD,3000058274,31811.62,Reprographic Services
Cabinet Office,CABINET OFFICE,25/03/2015,ALL OTHER TRAINING AND DEVELOPMENT VAT RECOVERABLE,ISA 2 Prog,QA LTD,3000058571,31875.00,Government Cyber Security Apprenticeships pilot for annual training of 5 people 
Cabinet Office,CABINET OFFICE,25/03/2015,CONTRACTORS & STAFF SUBSTITUTIONS,GPU POLICY AND STRATEGY ADMIN,CAPITA BUSINESS SERVICES LTD,3000058641,32822.48,Interim staff costs 
Cabinet Office,CABINET OFFICE,25/03/2015,OTHER IS IT COSTS VAT RECOV,GDS Enabling Strategy,CLOUDREACH LTD,3000058612,33150.00,Business analysis services provided to Enabling Strategy
Cabinet Office,CABINET OFFICE,25/03/2015,ADDITIONSAUC F/H NON RES BLDGS,MODERNISATION PROGRAMME DS 13/14,BOUYGUES E&S FM UK LTD,3000058692,34076.58,Estate Services
Cabinet Office,CABINET OFFICE,25/03/2015,RESOURCE GRANTS LOCAL AUTHORIT,ELECTORAL REGISTRATION TRANSFORMATION PROGRAMME,DOVER DISTRICT COUNCIL,3000058460,34506.00,Funding to support the completeness and accuracy of the Electoral Register ahead of the General Election and Individual Electoral Registration costs
Cabinet Office,CABINET OFFICE,25/03/2015,CONTRACTORS & STAFF SUBSTITUTIONS,ERG NEXT GENERATION SHARED SERVICES,CAPITA BUSINESS SERVICES LTD,3000058674,35329.88,Interim IT Specialists 
Cabinet Office,CABINET OFFICE,25/03/2015,RESOURCE GRANTS LOCAL AUTHORIT,ELECTORAL REGISTRATION TRANSFORMATION PROGRAMME,BEDFORD BOROUGH COUNCIL,3000058492,35520.00,Funding to support the completeness and accuracy of the Electoral Register ahead of the General Election
Cabinet Office,CABINET OFFICE,25/03/2015,GRANT FUND MANAGEMENT,CENTRE FOR SOCIAL ACTION,SOCIAL INVESTMENT BUSINESS,3000058597,36639.60,Management of Centre for Social Action grant funds 
Cabinet Office,CABINET OFFICE,25/03/2015,CONSULTANTS VAT RECOVERABLE,YOUTH POLICY,SOCIAL ENTERPRISE SUPPORT CENTRE,3000058404,36800.00,Delivering Differently for Young People programme costs
Cabinet Office,CABINET OFFICE,25/03/2015,RESOURCE GRANTS LOCAL AUTHORIT,ELECTORAL REGISTRATION TRANSFORMATION PROGRAMME,BRIGHTON & HOVE CITY COUNCIL,3000058287,37103.00,Funding to support the completeness and accuracy of the Electoral Register ahead of the General Election
Cabinet Office,CABINET OFFICE,25/03/2015,OTHER IS IT COSTS VAT RECOV,GDS TRANSFORMATION,KAINOS SOFTWARE LTD,3000058599,37620.00,IT support for GDS projects 
Cabinet Office,CABINET OFFICE,25/03/2015,LORD LIEUTENANTS EXPENSES,LORD LIEUTENANTS,WEST MIDLANDS LIEUTENANCY,3000058634,39160.25,First quarter advance expense payment to Her Majesty's Lord Lieutenancy
Cabinet Office,CABINET OFFICE,25/03/2015,CONSULTANTS VAT RECOVERABLE,ERG PERFORMANCE AND PLANNING,PRICEWATERHOUSE COOPERS LLP,3000058497,39242.00,"Support developing, and assuring savings and benefit realisation evidence."
Cabinet Office,CABINET OFFICE,25/03/2015,CONTRACTORS & STAFF SUBSTITUTIONS,GDS ID ASSURANCE,CAPITA BUSINESS SERVICES LTD,3000058434,39348.16,Interim IT Specialists 
Cabinet Office,CABINET OFFICE,25/03/2015,RESEARCH AND DEVELOPMENT (VAT RECOVERABLE),CENTRE FOR SOCIAL ACTION,LANCASTER UNIVERSITY,3000058312,39946.80,Evaluation of the Social Action End of Life Fund
Cabinet Office,CABINET OFFICE,25/03/2015,RESOURCE GRANTS LOCAL AUTHORIT,ELECTORAL REGISTRATION TRANSFORMATION PROGRAMME,SOUTH LAKELAND DISTRICT COUNCIL,3000058608,40161.00,Funding to support the completeness and accuracy of the Electoral Register ahead of the General Election and Individual Electoral Registration costs
Cabinet Office,CABINET OFFICE,25/03/2015,MANAGEMENT CONFERENCES,MANAGEMENT AND CENTRAL SUPPORT,CALDER WORLD OF TRAVEL,3000058247,40163.65,Civil Service Live costs
Cabinet Office,CABINET OFFICE,25/03/2015,CALL CHARGES,ICT SERVICES,BT GLOBAL SERVICES.,3000058637,40909.67,Telecomms charges
Cabinet Office,CABINET OFFICE,25/03/2015,SERVICE CHARGES,DOVER HOUSE,SCOTLAND OFFICE,3000058379,40999.14,Facilities Management Services
Cabinet Office,CABINET OFFICE,25/03/2015,RESOURCE GRANTS LOCAL AUTHORIT,ELECTORAL REGISTRATION TRANSFORMATION PROGRAMME,WAKEFIELD DISTRICT COUNCIL,3000058357,41480.00,Funding to support the completeness and accuracy of the Electoral Register ahead of the General Election
Cabinet Office,CABINET OFFICE,25/03/2015,CONSULTANTS VAT RECOVERABLE, ERG CIVIL SERVICE PEOPLE SURVEY,SCRAPERWIKI LTD,3000058467,41800.00,People Survey digital reporting tool build and maintenance
Cabinet Office,CABINET OFFICE,25/03/2015,NON PRIME UTILITIES,FEM MISC,BOUYGUES E&S FM UK LTD,3000058692,44728.14,Facilities Management Services
Cabinet Office,CABINET OFFICE,25/03/2015,OTHER IS IT COSTS VAT RECOV,ISA 2 Prog,RISUAL LTD,3000058431,44887.50,IT Support for CERT UK
Cabinet Office,CABINET OFFICE,25/03/2015,RESOURCE GRANTS LOCAL AUTHORIT,ELECTORAL REGISTRATION TRANSFORMATION PROGRAMME,SOUTH NORFOLK DISTRICT COUNCIL,3000058462,45427.84,Funding to support the completeness and accuracy of the Electoral Register ahead of the General Election and Individual Electoral Registration costs
Cabinet Office,CABINET OFFICE,25/03/2015,FM CONTRACT VARIABLE,TOTAL FM CONTRACT,BOUYGUES E&S FM UK LTD,3000058692,46516.52,Facilities Management Services
Cabinet Office,CABINET OFFICE,25/03/2015,TELECOM RENTALS,TELEPHONE SERVICES,FOOD STANDARDS AGENCY,3000058576,46587.60,Telecomms charges
Cabinet Office,CABINET OFFICE,25/03/2015,RESEARCH AND DEVELOPMENT (VAT RECOVERABLE),CENTRE FOR SOCIAL ACTION,THE NUFFIELD TRUST,3000058228,47320.88,Evaluation of grant projects under Reducing Pressures on Hospitals Fund
Cabinet Office,CABINET OFFICE,25/03/2015,CONTRACTORS & STAFF SUBSTITUTIONS,GDS TRANSFORMATION,CAPITA BUSINESS SERVICES LTD,3000058434,47529.56,Interim IT Specialists 
Cabinet Office,CABINET OFFICE,25/03/2015,OTHER IS IT COSTS VAT RECOV,GDS TRANSFORMATION,THOUGHTWORKS LTD,3000058435,49462.50,Agile Coach services provided to the Exemplar Programme
Cabinet Office,CABINET OFFICE,25/03/2015,RESOURCE GRANTS PRIVATE SECTOR,CHARITABLE GIVING,ITV TEXT SANTA LTD,3000058255,50000.00,"Grant to support the ITV Text Santa Appeal 2014, encouraging more people to get involved in volunteering and incentivising financial donations"
Cabinet Office,CABINET OFFICE,25/03/2015,RESOURCE GRANTS PRIVATE SECTOR,YOUTH POLICY,EARLY INTERVENTION FOUNDATION,3000058264,50000.00,Grant to expand the scope of a review of social and emotional skills to cover out of school interventions
Cabinet Office,CABINET OFFICE,25/03/2015,RESEARCH AND DEVELOPMENT (VAT RECOVERABLE),ERG CONTESTABLE POLICY FUND,DEPARTMENT OF HEALTH,3000058625,50000.00,Matched funding for the Contestable Policy Fund project 'Engagement for Child & Adolescent Mental Health Services Task Force'
Cabinet Office,CABINET OFFICE,25/03/2015,CONTRACTORS & STAFF SUBSTITUTIONS,GDS PEOPLE AND SKILLS,CAPITA BUSINESS SERVICES LTD,3000058641,50055.89,Interim IT Specialists 
Cabinet Office,CABINET OFFICE,25/03/2015,FM CONTRACT FIXED COSTS,ROSEBERY COURT FM CONTRACT,MITIE BUSINESS SERVICES LTD,3000058317,50673.22,Facilities Management Services
Cabinet Office,CABINET OFFICE,25/03/2015,GRANT FUND MANAGEMENT,ERTP ERO CONFIRMATION & VERIFICATION,DEPARTMENT FOR COMMUNITIES AND LOCAL GOVERNMENT,3000058690,52000.00,Managed services for processing electoral expense claims from returning offices
Cabinet Office,CABINET OFFICE,25/03/2015,OTHER TRAVEL COSTS,OVERSEAS MISSIONS,FOREIGN & COMMONWEALTH OFFICE,3000058343,52160.17,Official travel 
Cabinet Office,CABINET OFFICE,25/03/2015,CONTRACTORS & STAFF SUBSTITUTIONS,GDS COMMUNICATIONS AND CREATIVE,CAPITA BUSINESS SERVICES LTD,3000058641,52173.28,Interim IT Specialists 
Cabinet Office,CABINET OFFICE,25/03/2015,CONSULTANCY SERVICES 'NOT' RECOVERABLE,CENTRE FOR SOCIAL ACTION,ATQ CONSULTANTS UK LTD,3000058469,52200.00,Provision of business support for charities
Cabinet Office,CABINET OFFICE,25/03/2015,CONTRACTORS & STAFF SUBSTITUTIONS,GDS OFFICE OF CHIEF TECHNOLOGY OFFICER,CAPITA BUSINESS SERVICES LTD,3000058641,52351.14,Interim IT Specialists 
Cabinet Office,CABINET OFFICE,25/03/2015,RESOURCE GRANTS LOCAL AUTHORIT,ELECTORAL REGISTRATION TRANSFORMATION PROGRAMME,ROYAL BOROUGH OF KINGSTON UPON THAMES,3000058321,52922.00,Funding to support the completeness and accuracy of the Electoral Register ahead of the General Election and Individual Electoral Registration costs
Cabinet Office,CABINET OFFICE,25/03/2015,FM CONTRACT FIXED COSTS,PMO FACILITIES MANAGEMENT,BOUYGUES E&S FM UK LTD,3000058692,53446.08,Facilities Management Services
Cabinet Office,CABINET OFFICE,25/03/2015,TELECOM RENTALS,PMO ICTS,BT,3000058509,55023.23,Telecomms charges 
Cabinet Office,CABINET OFFICE,25/03/2015,RESOURCE GRANTS PRIVATE SECTOR,ERTP ERO CUSTOMER REGISTRATION,NATIONAL ASSOCIATION OF MANAGERS OF STUDENT SERVICES,3000058593,60000.00,Funding to support activities to Maximise the Electoral Register
Cabinet Office,CABINET OFFICE,25/03/2015,CONTRACTORS & STAFF SUBSTITUTIONS,ELECTORAL REGISTRATION TRANSFORMATION PROGRAMME,CAPITA BUSINESS SERVICES LTD,3000058641,61815.78,Individual Electoral Registration costs
Cabinet Office,CABINET OFFICE,25/03/2015,LEGAL ADVICE FROM TSOL,IRAQ INQUIRY WITNESS UNIT,GOVERNMENT LEGAL DEPARTMENT,3000058422,63176.40,Legal Services
Cabinet Office,CABINET OFFICE,25/03/2015,STAFF RELATED COSTS,CABINET OFFICE SECURITY TEAM,FCO SERVICES,3000058420,63688.80,Security vetting fees
Cabinet Office,CABINET OFFICE,25/03/2015,RESEARCH AND DEVELOPMENT (VAT RECOVERABLE),GDS POLICY AND ENGAGEMENT,TNS UK LTD,3000058602,63950.00,Cross-government digital inclusion research
Cabinet Office,CABINET OFFICE,25/03/2015,CONSULTANTS VAT RECOVERABLE,ERTP ERO CUSTOMER REGISTRATION,ELECTORAL COMMISSION,3000058574,66600.00,Research to measure democractic engagement in Great Britain
Cabinet Office,CABINET OFFICE,25/03/2015,CONSULTANTS VAT RECOVERABLE,ERG NEXT GENERATION SHARED SERVICES,PRICEWATERHOUSE COOPERS LLP,3000058497,68175.00,Financial consultancy support for Independent Shared Services Centres
Cabinet Office,CABINET OFFICE,25/03/2015,OTHER IS IT COSTS VAT RECOV,GRANTS PORTAL,NCVO,3000058348,69481.75,Funding of Central Web Resource for the VCSE Sector
Cabinet Office,CABINET OFFICE,25/03/2015,CONTRACTORS & STAFF SUBSTITUTIONS,ERG ASSURANCE REVIEWS,CAPITA BUSINESS SERVICES LTD,3000058641,70807.51,Interim IT Specialists 
Cabinet Office,CABINET OFFICE,25/03/2015,CONTRACTORS & STAFF SUBSTITUTIONS,GDS PERFORMANCE AND DELIVERY,CAPITA BUSINESS SERVICES LTD,3000058641,73880.52,Interim IT Specialists 
Cabinet Office,CABINET OFFICE,25/03/2015,GRANT FUND MANAGEMENT VAT RECOVERABLE,OCS SOCIAL ACTION PROGRAMME TEAM,COMMUNITY DEVELOPMENT FOUNDATION,3000058345,75833.00,Community First Endowment Matched Challenge management fee
Cabinet Office,CABINET OFFICE,25/03/2015,RESOURCE GRANTS PRIVATE SECTOR, OPEN DATA PROGRAMME,UNIVERSITY OF MANCHESTER,3000058439,76896.00,"Grant to help organisations reduce the risk of releasing personal information when publishing open data, through the development of an online Anonymisation Guide "
Cabinet Office,CABINET OFFICE,25/03/2015,OTHER IS IT COSTS VAT RECOV,GDS Enabling Strategy,METHODS CONSULTING LTD,3000058500,78775.00,Developer services provided to GaaP product teams
Cabinet Office,CABINET OFFICE,25/03/2015,RESOURCE GRANTS PRIVATE SECTOR,ERTP ERO CUSTOMER REGISTRATION,BRITISH YOUTH COUNCIL,3000058592,80000.00,Funding to support activities to Maximise the Electoral Register
Cabinet Office,CABINET OFFICE,25/03/2015,NON PRIME PROPERTY COSTS,GDS BUSINESS TECHNOLOGY,FOOD STANDARDS AGENCY,3000058576,81453.24,Service charge for accommodation 
Cabinet Office,CABINET OFFICE,25/03/2015,GRANT FUND MANAGEMENT,TECHNICAL ASSISTANCE,SOCIAL INVESTMENT BUSINESS,3000058597,82354.80,Grant to support social ventures in understanding and improving their social impact and to demonstrate improvements to investors and commissioners
Cabinet Office,CABINET OFFICE,25/03/2015,LEGAL ADVICE FROM TSOL,ERG DEBT MARKET INTEGRATOR,GOVERNMENT LEGAL DEPARTMENT,3000058422,83701.68,Legal services 
Cabinet Office,CABINET OFFICE,25/03/2015,ADDITIONS - IT VAT REC,CO IT SYSTEMS CAPITAL,MISCO,3000058335,85045.41,IT hardware 
Cabinet Office,CABINET OFFICE,25/03/2015,TELECOM RENTALS,CCS RESILIENT TELECOMMUNICATIONS,MINISTRY OF DEFENCE,3000058452,87597.69,High Integrity Telecoms System Project Costs
Cabinet Office,CABINET OFFICE,25/03/2015,CONSULTANTS VAT RECOVERABLE,CENTRAL OVERHEADS,THE BEHAVIOURAL INSIGHTS TEAM,3000058525,89950.00,Delivery of specialist behavioural insights consulting services to the Cabinet Office
Cabinet Office,CABINET OFFICE,25/03/2015,RESEARCH AND DEVELOPMENT (VAT RECOVERABLE),EVALUATIONS,IPSOS MORI LTD,3000058236,91000.00,Evaluation of Community Organisers' and Community First  Results and Final Report
Cabinet Office,CABINET OFFICE,25/03/2015,BRIDGES SOCIAL ENTREPRENEURS FUND ADDITIONS,SE EQUITY FUND,BRIDGES VENTURES LTD,3000058450,91433.00,Partnership to undertake investment business with the objective of supporting growth and development of social enterprises and providing partners with a financial return
Cabinet Office,CABINET OFFICE,25/03/2015,CONTRACTORS & STAFF SUBSTITUTIONS,G CLOUD,CAPITA BUSINESS SERVICES LTD,3000058641,91783.50,Interim IT Specialists 
Cabinet Office,CABINET OFFICE,25/03/2015,CONTRACTORS & STAFF SUBSTITUTIONS,GDS BUSINESS AND OFFICE COSTS,CAPITA BUSINESS SERVICES LTD,3000058641,93313.30,Interim IT Specialists 
Cabinet Office,CABINET OFFICE,25/03/2015,GRANT FUND MANAGEMENT VAT RECOVERABLE,GPU POLICY AND STRATEGY,LOCAL GOVERNMENT ASSOCIATION,3000058677,95752.41,One Public Estate Project quarterly management fee
Cabinet Office,CABINET OFFICE,25/03/2015,CONTRACTORS & STAFF SUBSTITUTIONS,CO IT SYSTEMS,CAPITA BUSINESS SERVICES LTD,3000058641,96297.66,Interim IT Specialists 
Cabinet Office,CABINET OFFICE,25/03/2015,SOFTWARE LEASE/LICENSE,ERTP ERO DIGITAL,XPRESS SOFTWARE SOLUTIONS LTD,3000058245,103860.00,Individual Electoral Registration change requests costs to the Electoral Management System
Cabinet Office,CABINET OFFICE,25/03/2015,STAFF RELATED COSTS,FAST STREAM COSTS CS RESOURCING,HMRC,3000058207,105600.00,Fast stream programme costs
Cabinet Office,CABINET OFFICE,25/03/2015,CONSULTANTS VAT RECOVERABLE,YOUTH POLICY,IPSOS MORI LTD,3000058236,109906.50,Evaluation of Uniformed Youth Social Action Fund
Cabinet Office,CABINET OFFICE,25/03/2015,CONTRACTORS & STAFF SUBSTITUTIONS,GDS PUBLISHING PLATFORM TECHNOLOGY,CAPITA BUSINESS SERVICES LTD,3000058641,114392.75,Interim IT Specialists 
Cabinet Office,CABINET OFFICE,25/03/2015,OTHER IS IT COSTS VAT RECOV,GPU POLICY AND STRATEGY ADMIN,CORPORATE DOCUMENT SERVICES LTD,3000058381,116966.50,"ePIMS support, maintenance and minor developments on various projects."
Cabinet Office,CABINET OFFICE,25/03/2015,CONTRACTORS & STAFF SUBSTITUTIONS,PUBLIC SERVICES NETWORK,CAPITA BUSINESS SERVICES LTD,3000058641,121805.59,Interim IT Specialists 
Cabinet Office,CABINET OFFICE,25/03/2015,CONSULTANTS VAT RECOVERABLE,ERG MAJOR PROJECTS TEAM,DELOITTE MCS LTD,3000058536,124540.88,Research support costs for procurement planning exercise 
Cabinet Office,CABINET OFFICE,25/03/2015,PUBLICITY ADVERTISING MEDIA,GREAT CAMPAIGN PROGRAMME,VISIT BRITAIN,3000058260,125000.00,GREAT Campaign
Cabinet Office,CABINET OFFICE,25/03/2015,RESOURCE GRANTS PRIVATE SECTOR,SKILLS STRATEGY DEVELOPMENT,NCVO,3000058318,125000.00,Contribution to costs towards the development and delivery of commercial masterclasses for the VCSE sector
Cabinet Office,CABINET OFFICE,25/03/2015,SERVICE PAYMENTS,STERIA SHARED SERVICES,SHARED SERVICES CONNECTED LTD,3000058293,125285.92,Shared services charges
Cabinet Office,CABINET OFFICE,25/03/2015,RESOURCE GRANTS PRIVATE SECTOR,NCS DEVOLVED PLACE,ENGAGE4LIFE,3000058225,125788.00,Delivery of the National Citizen Service in Wales
Cabinet Office,CABINET OFFICE,25/03/2015,CAPITAL GRANTS PRIV SEC - CDEL,PROGRAMME & STRATEGY OFFICE,THE POLICE REHABILITATION CENTRE,3000058334,127000.00,Support to improve facilities to aid the physical rehabilitation of police officers
Cabinet Office,CABINET OFFICE,25/03/2015,FM CONTRACT VARIABLE,ESTATE CONSOLIDATION,BOUYGUES E&S FM UK LTD,3000058692,132017.82,Facilities Management Services
Cabinet Office,CABINET OFFICE,25/03/2015,OTHER IS IT COSTS VAT RECOV,CERT,RISUAL LTD,3000058431,136304.14,IT Support for CERT UK
Cabinet Office,CABINET OFFICE,25/03/2015,MANAGEMENT CONFERENCES,MANAGEMENT AND CENTRAL SUPPORT,QUEEN ELIZABETH II CONF CENTRE,3000058238,140536.00,Civil Service Live costs 
Cabinet Office,CABINET OFFICE,25/03/2015,CONTRACTORS & STAFF SUBSTITUTIONS,GDS ID ASSURANCE,CAPITA BUSINESS SERVICES LTD,3000058641,144310.72,Interim IT Specialists 
Cabinet Office,CABINET OFFICE,25/03/2015,PUBLICITY ADVERTISING MEDIA,GREAT CAMPAIGN PROGRAMME,RKCR Y&R,3000058584,161239.50,GREAT Campaign
Cabinet Office,CABINET OFFICE,25/03/2015,CAPITAL GRANTS PRIV SEC - CDEL,PROGRAMME & STRATEGY OFFICE,THE POLICE TREATMENT CENTRES,3000058299,166000.00,Support to improve facilities to aid the physical rehabilitation of police officers
Cabinet Office,CABINET OFFICE,25/03/2015,HARDWARE LEASE,CERT,E2E ASSURE LTD,3000058324,170160.00,"Hardware Lease, Support and Protective Monitoring"
Cabinet Office,CABINET OFFICE,25/03/2015,RESOURCE GRANTS PRIVATE SECTOR,PROGRAMME & STRATEGY OFFICE,THE AMBULANCE SERVICES CHARITY,3000058402,170390.00,Resource Grant for Organisational Development
Cabinet Office,CABINET OFFICE,25/03/2015,LEGAL ADVICE FROM TSOL,CENTRAL LEGAL COSTS,GOVERNMENT LEGAL DEPARTMENT,3000058422,175895.25,Legal services
Cabinet Office,CABINET OFFICE,25/03/2015,CONTRACTORS & STAFF SUBSTITUTIONS,GDS TRANSFORMATION,CAPITA BUSINESS SERVICES LTD,3000058641,208308.43,Interim IT Specialists 
Cabinet Office,CABINET OFFICE,25/03/2015,SUNNINGDALE PARK PFI SERVICE CHARGES,NSG TRANSITION COSTS,DE VERE VENUES GROUP LTD,3000058670,230313.59,PFI Service Charge for Sunningdale Park
Cabinet Office,CABINET OFFICE,25/03/2015,OTHER IS IT COSTS VAT RECOV,CO IT SYSTEMS,NORTH HIGHLAND LTD,3000058325,243751.75,Cabinet Office transformation project costs
Cabinet Office,CABINET OFFICE,25/03/2015,SECURITY AND CUSTODY SERVICES,GOVERNMENT SECURITY ZONE,METROPOLITAN POLICE AUTHORITY,3000058279,252500.00,Payment on behalf of Whitehall Departments for the cost of the Whitehall Security Zone
Cabinet Office,CABINET OFFICE,25/03/2015,CAPITAL GRANTS PRIV SEC - CDEL,FIGHT FOR PEACE GRANT,FIGHT FOR PEACE UK,3000058673,271268.22,Grant for the expansion and redevelopment of the Fight for Peace Academy and Training Centre in East London
Cabinet Office,CABINET OFFICE,25/03/2015,OTHER IS IT COSTS VAT RECOV,CERT,MDS TECHNOLOGIES LTD,3000058699,287715.00,IT Development for CERT UK
Cabinet Office,CABINET OFFICE,25/03/2015,OTHER IS IT COSTS VAT RECOV,GDS ID ASSURANCE,EXPERIAN LTD,3000058206,294210.00,Cost of identities under the Identity Provider Call-Off Contract
Cabinet Office,CABINET OFFICE,25/03/2015,OTHER IS IT COSTS VAT RECOV,GDS PUBLISHING PLATFORM TECHNOLOGY,CREATIVE CHOICE CIC,3000058290,322708.88,Email service for digital teams 
Cabinet Office,CABINET OFFICE,25/03/2015,STAFF RELATED COSTS VAT RECOVERABLE,HR CAPABILITY AND TALENT,DWP,3000058455,352000.00,Civil Service Fast Steam Costs
Cabinet Office,CABINET OFFICE,25/03/2015,OTHER IS IT COSTS VAT RECOV,CERT,SUREVINE LTD,3000058666,361024.00,IT Development for CERT UK
Cabinet Office,CABINET OFFICE,25/03/2015,RESOURCE GRANTS PRIVATE SECTOR,COMMUNITY ORGANISERS,LOCALITY,3000058313,385030.00,"Grant to fund the cost of up to 500 newly qualified Community Organisers to ensure long term sustainability of social capital, created as a result of main Community Organisers training bursary programme."
Cabinet Office,CABINET OFFICE,25/03/2015,FM CONTRACT LIFECYCLE,TOTAL FM CONTRACT,BOUYGUES E&S FM UK LTD,3000058692,400000.00,Facilities Management Services
Cabinet Office,CABINET OFFICE,25/03/2015,RESOURCE GRANTS PRIVATE SECTOR,COMMUNITY GRANTS,THE JOIN IN TRUST,3000058540,450000.00,Support to continue to develop the Olympic legacy of volunteering
Cabinet Office,CABINET OFFICE,25/03/2015,FM CONTRACT FIXED COSTS,TOTAL FM CONTRACT,BOUYGUES E&S FM UK LTD,3000058692,547066.58,Facilities Management Services 
Cabinet Office,CABINET OFFICE,25/03/2015,RESEARCH AND DEVELOPMENT (VAT RECOVERABLE),NCS OTHER,IPSOS MORI LTD,3000058236,620000.00,National Citizen Service programme evaluations 
Cabinet Office,CABINET OFFICE,25/03/2015,PENSIONS PAYROLL CONTRACTOR - FIXED FEE,ROYAL MAIL SERVICE PENSIONS,ROYAL MAIL GROUP LTD,3000058399,789927.50,Adminstration services for the Royal Mail Statutory Pension Scheme
Cabinet Office,CABINET OFFICE,25/03/2015,CONSULTANTS VAT RECOVERABLE,GPU POLICY AND STRATEGY ADMIN,DEPARTMENT FOR COMMUNITIES AND LOCAL GOVERNMENT,3000058690,907000.00,Estate services 
Cabinet Office,CABINET OFFICE,25/03/2015,CAPITAL GRANTS PRIV SEC - CDEL,PROGRAMME & STRATEGY OFFICE,LONDONS AIR AMBULANCE,3000058474,1000000.00,Initial contribution towards the purchase of a relief helicopter for London's Air Ambulance.
Cabinet Office,CABINET OFFICE,25/03/2015,RESOURCE GRANTS PRIVATE SECTOR,CENTRE FOR SOCIAL ACTION,NESTA,3000058418,1500000.00,The provsion of funding to Enable NESTA to distribute grant funds and provide non-financial support through the Innovation Fund in accordance with the aims and objectives of the Centre for Social Action
Cabinet Office,CABINET OFFICE,25/03/2015,OTHER IS IT COSTS VAT RECOV,1,HM TREASURY,3000058488,1545011.15,IT costs
Cabinet Office,CABINET OFFICE,25/03/2015,PENSIONS ADMINISTRATION - ADDITIONAL COSTS (MyCSP),SME PENSIONS PROGRAMME,MYCSP LTD,3000058697,1829764.80,MyCSP programme costs
Cabinet Office,CABINET OFFICE,25/03/2015,CAPITAL GRANTS PRIV SEC - CDEL,PROGRAMME & STRATEGY OFFICE,THE AMBULANCE SERVICES CHARITY,3000058402,2037100.00,Emergency Services Funding Capital Grant
Cabinet Office,CABINET OFFICE,26/03/2015,CONTRACTORS & STAFF SUBSTITUTIONS,GDS TRANSFORMATION,CAPITA BUSINESS SERVICES LTD,3000058709,27584.37,Interim IT Specialists 
Cabinet Office,CABINET OFFICE,26/03/2015,CONTRACTORS & STAFF SUBSTITUTIONS,GDS BUS DEV CONSULTANT AND STAFF COSTS,CAPITA RESOURCING LTD,3000058785,28690.20,Interim IT Specialists 
Cabinet Office,CABINET OFFICE,26/03/2015,CONTRACTORS & STAFF SUBSTITUTIONS,PUBLIC SERVICES NETWORK,CAPITA BUSINESS SERVICES LTD,3000058709,29544.63,Interim IT Specialists 
Cabinet Office,CABINET OFFICE,26/03/2015,RESOURCE GRANTS LOCAL AUTHORIT,GPU POLICY AND STRATEGY,NORFOLK COUNTY COUNCIL,3000058717,30000.00,One Public Estate Grant to Leeds City Council
Cabinet Office,CABINET OFFICE,26/03/2015,RESOURCE GRANTS LOCAL AUTHORIT,GPU POLICY AND STRATEGY,LEEDS CITY COUNCIL,3000058724,30000.00,One Public Estate Grant to Norfolk County Council
Cabinet Office,CABINET OFFICE,26/03/2015,MANAGEMENT CONFERENCES,TECHNICAL ASSISTANCE,BLOOMBERG BNA,2000609,34005.00,Supply of monitoring and development services in relation to government grant to the Kids Company
Cabinet Office,Crown Commercial Service,26/03/2015,WSDS Maintenance & Repairs,Whitehall Standby Dist Systems,Cofely,PINORD 729,40700.21,Funding for Electoral Registration Officers to address concerns around electoral integrity and promote confidence in the polls
Cabinet Office,Crown Commercial Service,26/03/2015,Maintenance & Repairs - IT,Enablement Projects,IBM UNITED KINGDOM LTD,PINORD 722,43064.01,eSourcing system licences
Cabinet Office,CABINET OFFICE,26/03/2015,RESOURCE GRANTS LOCAL AUTHORIT,GPU POLICY AND STRATEGY,MANCHESTER CITY COUNCIL,3000058723,50000.00,One Public Estate Grant to Manchester City Council
Cabinet Office,Crown Commercial Service,26/03/2015,WDHS Cost of Heat Supplied,Whitehall District Heating Systems,Cofely,PINORD 730,65230.11,Whitehall heating systems management
Cabinet Office,Crown Commercial Service,26/03/2015,Legal Fees,Legal Services,Treasury Solicitors,PINORD 770,66282.00,Legal services 
Cabinet Office,CABINET OFFICE,26/03/2015,OTHER IS IT COSTS VAT RECOV,GDS PUBLISHING PLATFORM TECHNOLOGY,CREATIVE CHOICE CIC,3000058780,67038.92,Provision of content design services to GOV.UK
Cabinet Office,CABINET OFFICE,26/03/2015,OTHER IS IT COSTS VAT RECOV, GRANTS PORTAL,NCVO,3000058752,69481.75,Funding of Central Web Resource for the VCSE Sector
Cabinet Office,CABINET OFFICE,26/03/2015,OTHER LEGAL FEES,ERG DEBT MARKET INTEGRATOR,TREASURY SOLICITORS DEPT,3000058710,71232.43,Legal services 
Cabinet Office,CABINET OFFICE,26/03/2015,OTHER IS IT COSTS VAT RECOV,GDS ID ASSURANCE,DIGIDENTITY BV,2000611,74401.17,Cost of identities under the Identity Provider Call-Off Contract
Cabinet Office,CABINET OFFICE,26/03/2015,OPERATING LEASES - RENT,CARLTON GARDENS,BNP PARIBAS REAL ESTATE,3000058703,75000.00,Rent for accommodation
Cabinet Office,Crown Commercial Service,26/03/2015,WDHS Cost of Heat Supplied,Whitehall District Heating Systems,Cofely,PINORD 732,147613.24,Whitehall heating systems management
Cabinet Office,CABINET OFFICE,26/03/2015,OPERATING LEASES - RENT,ROSEBERY COURT FM CONTRACT,J KING NORFOLK COORDINATION LTD,3000058768,159165.90,Rent for accommodation
Cabinet Office,CABINET OFFICE,26/03/2015,CAPITAL GRANTS PRIV SEC - CDEL,PROGRAMME & STRATEGY OFFICE,FIRE FIGHTERS CHARITY,3000058720,198500.00,Grant to support the provision of rehabilitation services for Firefighters and to enhance the existing facilities of the Firefighters Charity
Cabinet Office,CABINET OFFICE,26/03/2015,OPERATING LEASES - RENT,35 GREAT SMITH STREET,JONES LANG LASALLE LTD,3000058766,303600.00,Rent for accommodation
Cabinet Office,CABINET OFFICE,26/03/2015,PENSIONS PAYROLL CONTRACTOR - FIXED FEE,ROYAL MAIL SERVICE PENSIONS,ROYAL MAIL GROUP LTD,3000058783,394963.75,Adminstration services for the Royal Mail Statutory Pension Scheme
Cabinet Office,CABINET OFFICE,26/03/2015,PENSIONS PAYROLL CONTRACTOR - FIXED FEE,SME CONTRACT MANAGMENT LEAD,MYCSP LTD,3000058771,2944547.41,Civil Service pension administration services
Cabinet Office,CABINET OFFICE,27/03/2015,COACHING AND MENTORING,FAST STREAM COSTS CS RESOURCING,SAID BUSINESS SCHOOL,3000058857,25000.00,Fast stream programme costs
Cabinet Office,CABINET OFFICE,27/03/2015,RESOURCE GRANTS PRIVATE SECTOR,CENTRE FOR SOCIAL ACTION,AGE UK,3000058800,25000.00,Grant to help increase the corporate participation in Call in Time voluteer programme
Cabinet Office,CABINET OFFICE,27/03/2015,CONSULTANTS VAT RECOVERABLE,MUTUALS,BOLT PARTNERS LLP,3000058814,29010.00,Consultancy advice to support the service spinning out as a public service mutual
Cabinet Office,CABINET OFFICE,27/03/2015,CONSULTANTS VAT RECOVERABLE,MUTUALS,HEMPSONS SOLICITORS,3000058803,29920.50,Consultancy advice to support the service spinning out as a public service mutual
Cabinet Office,CABINET OFFICE,27/03/2015,CONSULTANTS VAT RECOVERABLE,MUTUALS,OFFICE FOR PUBLIC MANAGEMENT LTD,3000058791,36508.96,Consultancy advice to support the service spinning out as a public service mutual
Cabinet Office,CABINET OFFICE,27/03/2015,RESOURCE GRANTS PRIVATE SECTOR,SKILLS STRATEGY DEVELOPMENT,BUSINESS IN THE COMMUNITY,3000058830,38013.00,Business skills sharing campaign costs 
Cabinet Office,CABINET OFFICE,27/03/2015,RESOURCE GRANTS PRIVATE SECTOR,YOUTH POLICY,BRITISH YOUTH COUNCIL.,3000058789,42044.00,Grant to provide national support services to enable youth participation in public decision making
Cabinet Office,CABINET OFFICE,27/03/2015,FM CONTRACT FIXED COSTS,ADMIRALTY ARCH,BOUYGUES E&S FM UK LTD,3000058858,46118.44,Facilities Management Services
Cabinet Office,CABINET OFFICE,27/03/2015,CONSULTANTS VAT RECOVERABLE,MUTUALS,BDO LLP,3000058815,57000.00,Mutualisation support for NHS Foundation Trust
Cabinet Office,CABINET OFFICE,27/03/2015,RESOURCE GRANTS PRIVATE SECTOR,CENTRE FOR SOCIAL ACTION,SCHOOL FOR SOCIAL ENTREPRENEURS,3000058851,80000.00,Grant to fund programmes to support a minimum of 20 people set up or lead social businesses supporting young people who are effected by gang culture in Liverpool and London
Cabinet Office,CABINET OFFICE,27/03/2015,RESOURCE GRANTS PRIVATE SECTOR,COMPACT VOICE,NCVO,3000058850,94500.00,To fund the costs of Compact Voice
Cabinet Office,CABINET OFFICE,27/03/2015,RESOURCE GRANTS PRIVATE SECTOR,OPEN DATA PROGRAMME,NATIONAL BIODIVERSITY NETWORK TRUST,3000058809,99824.00,"Capture, collation and publishing of key biodiversity datasets"
Cabinet Office,CABINET OFFICE,27/03/2015,RESOURCE GRANTS PRIVATE SECTOR,YOUTH CENTRE FOR SOCIAL ACTION,EDUCATION ENDOWMENT FOUNDATION,3000058796,181848.50,Grant for Youth United and Children's University to participate in the Youth Social Action Trials
Cabinet Office,CABINET OFFICE,27/03/2015,RESOURCE GRANTS PRIVATE SECTOR,V,VINSPIRED,3000058835,187000.00,Grant for delivering youth volunteering opportunities
Cabinet Office,CABINET OFFICE,27/03/2015,CONSULTANTS VAT RECOVERABLE,ERG MAJOR PROJECTS TEAM,DELOITTE MCS LTD,3000058840,202505.44,Research support costs for procurement planning exercise 
Cabinet Office,CABINET OFFICE,27/03/2015,RESOURCE GRANTS TO NDPB'S,LEGAL ADVICE FUND,BIG LOTTERY ADVICE SERVICES TRANSITION FUND,3000058790,212430.00,Advice Service Transition fund operating costs
Cabinet Office,CABINET OFFICE,27/03/2015,RESOURCE GRANTS PRIVATE SECTOR,COMMUNITY ORGANISERS,LOCALITY,3000058849,296000.00,"Grant to fund the cost of up to 500 newly qualified Community Organisers to ensure long term sustainability of social capital, created as a result of main Community Organisers training bursary programme"
Cabinet Office,CABINET OFFICE,27/03/2015,RESOURCE GRANTS PRIVATE SECTOR,TECHNICAL ASSISTANCE,SOCIAL INVESTMENT BUSINESS,1001218,549407.00,Grant to support social ventures in understanding and improving their social impact and to demonstrate improvements to investors and commissioners
Cabinet Office,CABINET OFFICE,27/03/2015,OTHER IS IT COSTS VAT RECOV,COTT Flex C,FUJITSU SERVICES LTD,3000058853,689652.12,Service Charge for Flex C contract support and services
Cabinet Office,CABINET OFFICE,30/03/2015,RESOURCE GRANTS LOCAL AUTHORIT,ERTP ERO CUSTOMER REGISTRATION,DERBY CITY COUNCIL,3000058917,25000.00,Funding for Electoral Registration Officers to address concerns around electoral integrity and promote confidence in the polls
Cabinet Office,CABINET OFFICE,30/03/2015,RESOURCE GRANTS LOCAL AUTHORIT,ERTP ERO CUSTOMER REGISTRATION,SLOUGH BOROUGH COUNCIL,3000058924,25000.00,Funding for Electoral Registration Officers to address concerns around electoral integrity and promote confidence in the polls
Cabinet Office,CABINET OFFICE,30/03/2015,RESOURCE GRANTS LOCAL AUTHORIT,ERTP ERO CUSTOMER REGISTRATION,PENDLE BOROUGH COUNCIL,3000058925,25000.00,Funding for Electoral Registration Officers to address concerns around electoral integrity and promote confidence in the polls
Cabinet Office,CABINET OFFICE,30/03/2015,RESOURCE GRANTS LOCAL AUTHORIT,ERTP ERO CUSTOMER REGISTRATION,HYNDBURN BOROUGH COUNCIL,3000058934,25000.00,Funding for Electoral Registration Officers to address concerns around electoral integrity and promote confidence in the polls
Cabinet Office,CABINET OFFICE,30/03/2015,RESOURCE GRANTS LOCAL AUTHORIT,ERTP ERO CUSTOMER REGISTRATION,WOKING BOROUGH COUNCIL,3000058936,25000.00,Funding for Electoral Registration Officers to address concerns around electoral integrity and promote confidence in the polls
Cabinet Office,CABINET OFFICE,30/03/2015,RESOURCE GRANTS LOCAL AUTHORIT,ERTP ERO CUSTOMER REGISTRATION,OLDHAM MBC,3000058940,25000.00,Funding for Electoral Registration Officers to address concerns around electoral integrity and promote confidence in the polls
Cabinet Office,CABINET OFFICE,30/03/2015,RESOURCE GRANTS LOCAL AUTHORIT,ERTP ERO CUSTOMER REGISTRATION,LONDON BOROUGH OF TOWER HAMLETS,3000058921,25400.00,Funding for Electoral Registration Officers to address concerns around electoral integrity and promote confidence in the polls
Cabinet Office,CABINET OFFICE,30/03/2015,RESOURCE GRANTS LOCAL AUTHORIT,ERTP ERO CUSTOMER REGISTRATION,BRADFORD METROPOLITAN BOROUGH COUNCIL,3000058926,25800.00,Funding for Electoral Registration Officers to address concerns around electoral integrity and promote confidence in the polls
Cabinet Office,CABINET OFFICE,30/03/2015,OTHER LEGAL FEES,SME IDR & PENSIONS TECHNICAL LEAD,GOVERNMENT ACTUARYS DEPARTMENT GAD,3000058893,26862.57,Legal services
Cabinet Office,CABINET OFFICE,30/03/2015,RESOURCE GRANTS LOCAL AUTHORIT,ERTP ERO CUSTOMER REGISTRATION,CALDERDALE METROPOLITAN BOROUGH COUNCIL,3000058918,27045.00,Funding for Electoral Registration Officers to address concerns around electoral integrity and promote confidence in the polls
Cabinet Office,CABINET OFFICE,30/03/2015,RESOURCE GRANTS LOCAL AUTHORIT,ERTP ERO CUSTOMER REGISTRATION,LUTON BOROUGH COUNCIL,3000058864,28470.75,Funding for Electoral Registration Officers to address concerns around electoral integrity and promote confidence in the polls
Cabinet Office,CABINET OFFICE,30/03/2015,RESOURCE GRANTS TO NDPB'S,TECHNICAL ASSISTANCE,BIG LOTTERY FUND,1001224,28610.00,Social Incubator Fund operating costs
Cabinet Office,CABINET OFFICE,30/03/2015,STAFF RELATED COSTS VAT RECOVERABLE,HR CAPABILITY AND TALENT,HM REVENUE & CUSTOMS,3000058886,28985.00,Assessment Centre Research
Cabinet Office,CABINET OFFICE,30/03/2015,RESOURCE GRANTS PRIVATE SECTOR,ERTP ERO CUSTOMER REGISTRATION,UPRISING,3000058872,30000.00,Funding to support activities to Maximise the Electoral Register
Cabinet Office,CABINET OFFICE,30/03/2015,RESOURCE GRANTS PRIVATE SECTOR,ERG COMMERCIAL PORTFOLIO TEAM,ALBION CARE ALLIANCE CIC,3000058880,35000.00,Grant award for the Mutuals Future Funding Challenge Prize
Cabinet Office,CABINET OFFICE,30/03/2015,CONTRACTORS & STAFF SUBSTITUTIONS,GDS TRANSFORMATION,CAPITA BUSINESS SERVICES LTD,3000058961,36104.70,Interim IT Specialists 
Cabinet Office,CABINET OFFICE,30/03/2015,OTHER IS IT COSTS VAT RECOV,GDS OFFICE OF CHIEF TECHNOLOGY OFFICER,THOUGHTWORKS LTD,3000058868,38117.50,IT support for GDS projects 
Cabinet Office,CABINET OFFICE,30/03/2015,CONTRACTORS & STAFF SUBSTITUTIONS,G CLOUD,CAPITA BUSINESS SERVICES LTD,3000058961,39235.08,Interim IT Specialists 
Cabinet Office,CABINET OFFICE,30/03/2015,CONSULTANTS VAT RECOVERABLE,MUTUALS,LOCALITY,3000058901,40022.50,Consultancy advice to support the service spinning out as a public service mutual
Cabinet Office,CABINET OFFICE,30/03/2015,RESOURCE GRANTS PRIVATE SECTOR,SKILLS STRATEGY DEVELOPMENT,NATIONAL COUNCIL FOR VOLUNTARY ORGANISATIONS,1001228,40200.00,Contribution to costs towards the development and delivery of commercial masterclasses for the VCSE sector
Cabinet Office,CABINET OFFICE,30/03/2015,RESOURCE GRANTS LOCAL AUTHORIT,ERTP ERO CUSTOMER REGISTRATION,BLACKBURN WITH DARWEN BOROUGH COUNCIL,3000058931,44854.00,Funding for Electoral Registration Officers to address concerns around electoral integrity and promote confidence in the polls
Cabinet Office,CABINET OFFICE,30/03/2015,CONTRACTORS & STAFF SUBSTITUTIONS,GDS ID ASSURANCE,CAPITA BUSINESS SERVICES LTD,3000058961,47559.92,Interim IT Specialists 
Cabinet Office,CABINET OFFICE,30/03/2015,RESOURCE GRANTS LOCAL AUTHORIT,ERTP ERO CUSTOMER REGISTRATION,BIRMINGHAM CITY COUNCIL,3000058920,48775.00,Funding for Electoral Registration Officers to address concerns around electoral integrity and promote confidence in the polls
Cabinet Office,CABINET OFFICE,30/03/2015,RESOURCE GRANTS LOCAL AUTHORIT,ERTP ERO CUSTOMER REGISTRATION,PETERBOROUGH CITY COUNCIL,3000058937,55800.00,Funding for Electoral Registration Officers to address concerns around electoral integrity and promote confidence in the polls
Cabinet Office,CABINET OFFICE,30/03/2015,PENSIONS ADMINISTRATION - ADDITIONAL COSTS (MyCSP),SME GOVERNANCE LEAD,MYCSP LTD,3000058945,61375.20,MyCSP programme costs
Cabinet Office,CABINET OFFICE,30/03/2015,OTHER IS IT COSTS VAT RECOV,GDS PUBLISHING PLATFORM TECHNOLOGY,GOVDELIVERY,3000058916,64685.76,Provision of content design services to GOV.UK 
Cabinet Office,CABINET OFFICE,30/03/2015,OTHER LEGAL FEES,ERG SUPPLIER MANAGEMENT,FIELD FISHER WATERHOUSE LLP,3000058963,82824.00,Legal services 
Cabinet Office,CABINET OFFICE,30/03/2015,OTHER IS IT COSTS VAT RECOV,ISA 2 Prog,GET SAFE ON LINE LTD,3000058956,95000.00,Get Safe On Line campaign
Cabinet Office,CABINET OFFICE,30/03/2015,RESOURCE GRANTS PRIVATE SECTOR,CENTRE FOR SOCIAL ACTION,ROYAL VOLUNTARY SERVICE,1001220,144523.00,Grant to provide support to Hospital Trusts in coping with winter pressures through co-ordinated responses from existing social action projects 
Cabinet Office,CABINET OFFICE,30/03/2015,RESOURCE GRANTS PRIVATE SECTOR,YOUTH POLICY,NATIONAL COUNCIL FOR VOLUNTARY YOUTH SERVICES,1001221,150187.00,"Grant to develop a youth sector impact measurement initiative, the Centre for Youth Impact, which will deliver an online evidence and resource hub and capacity-building training for youth services"
Cabinet Office,CABINET OFFICE,30/03/2015,RESOURCE GRANTS TO NDPB'S,TECHNICAL ASSISTANCE,BIG LOTTERY FUND,1001225,197000.00,"Grant to support medium sized voluntary organisations and social enterprises, working with the most vulnerable and disadvantaged people, in securing their long term futures, by reviewing and transforming their operating models. Support is to be focused on organisations that offer high quality services which need to improve their organisational capacity, structures and strategies"
Cabinet Office,CABINET OFFICE,30/03/2015,RESOURCE GRANTS TO NDPB'S,OPEN DATA PROGRAMME,DEPARTMENT OF HEALTH,3000528,200000.00,Grant to provide a repository for linked patient data to enhance access to national cancer intelligence data 
Cabinet Office,CABINET OFFICE,30/03/2015,RESOURCE GRANTS PRIVATE SECTOR,CENTRE FOR SOCIAL ACTION,HOSPICE UK,1001229,234759.00,"Delivery of End of Life grant to involve support, assessment and building of a strong evidence base on the effectiveness of social interventions that benefit people and their families at end of life. Over a period of 16 months, Hospice UK will be the grant administrator of the social action end of life support fund. This will include launching the fund, managing the selection process, making recommendations on selection of applicants and distributing funding to successful applicants"
Cabinet Office,CABINET OFFICE,30/03/2015,RESOURCE GRANTS PRIVATE SECTOR,CENTRE FOR SOCIAL ACTION,AGE UK,1001222,300378.00,Grant to provide support to Hospital Trusts in coping with winter pressures through co-ordinated responses from existing social action projects 
Cabinet Office,CABINET OFFICE,30/03/2015,RESOURCE GRANTS TO NDPB'S,OPEN DATA PROGRAMME,DEFRA,3000058894,337000.00,Grant to assist release of National Flood Risk Assessment Data
Cabinet Office,CABINET OFFICE,30/03/2015,OTHER IS IT COSTS VAT RECOV,GDS ID ASSURANCE,EXPERIAN LTD,3000058898,965790.00,Provision of Storage & Hosting Services for the Identity Assurance Programme
Cabinet Office,CABINET OFFICE,30/03/2015,ADDITIONS IT HARDWARE,CO IT SYSTEMS CAPITAL,MISCO,3000058965,1099682.75,IT Hardware
Cabinet Office,CABINET OFFICE,30/03/2015,PROFESSIONAL ADVICE & OPINION VAT RECOVERABLE,NEXT GENERATION HR COSTS,HOME OFFICE,3000058902,1283814.70,Support on Civil Service Learning and Civil Service Organisation Development and Design as per Next Generation HR Memorandum of Understanding
Cabinet Office,CABINET OFFICE,30/03/2015,GRANT IN AID PRIVATE SECTOR,NCS IMB,NCS TRUST CIC,1001226,2572436.00,Grant in aid funding for the National Citizen Service Trust
Cabinet Office,CABINET OFFICE,30/03/2015,OTHER IS IT COSTS VAT RECOV,FLEX,HM TREASURY,3000058907,3004558.25,IT costs - Flex contract
Cabinet Office,CABINET OFFICE,30/03/2015,PROFESSIONAL ADVICE & OPINION VAT RECOVERABLE,NEXT GENERATION HR COSTS,DWP,3000058906,3114707.10,Support on Civil Service Employee Policy as per Next Generation HR Memorandum of Understanding
Cabinet Office,CABINET OFFICE,30/03/2015,PENSIONS ADMINISTRATION - ADDITIONAL COSTS (MyCSP),SME CONTRACT MANAGMENT LEAD,MYCSP LTD,3000058945,3374682.68,MyCSP programme costs
Cabinet Office,CABINET OFFICE,30/03/2015,ADDITIONS IT HARDWARE,ERG NEXT GENERATION SHARED SERVICES,STERIA LTD,1001227,4200000.00,Digital Transformation services to provide Single Operating Platform Milestone 
Cabinet Office,CABINET OFFICE,30/03/2015,RESOURCE GRANTS PRIVATE SECTOR,SOCIAL OUTCOMES FUND,ACCESS THE FOUNDATION FOR SOCIAL INVESTMENT,1001223,36000000.00,"Grant to enable We are Access - The Foundation for Social Investment, a new charitable foundation developed in partnership with the Cabinet Office, Big Society Capital and Big Lottery Fund, to champion those charities and social enterprises which are at the early stages of developing new ways of creating income to bring real change to people's lives. Access will help to provide these organisations with the finance and support they need at the beginning of their development, when it is most valuable but often hardest to find, and will  deliver its programmes through partners, administrators and fund managers.  "
Cabinet Office,CABINET OFFICE,31/03/2015,PROFESSIONAL ADVICE & OPINION VAT RECOVERABLE,GPU POLICY AND STRATEGY ADMIN,SECURITY SERVICES GROUP,3000059080,26644.00,Study to identify a techinical solution for access control in Government buildings
Cabinet Office,CABINET OFFICE,31/03/2015,GRANT FUND MANAGEMENT,YOUTH POLICY,METHODS CONSULTING LTD,3000059031,30454.80,Supply of monitoring and development services in relation to government grant to the Kids Company.
Cabinet Office,CABINET OFFICE,31/03/2015,OTHER IS IT COSTS VAT RECOV,G CLOUD,6POINT6 LTD,3000059006,31027.00,Service development of Digital Marketplace
Cabinet Office,CABINET OFFICE,31/03/2015,CONSULTANTS VAT RECOVERABLE,ERG FRAUD ERROR AND DEBT,ATKINS MANAGEMENT CONSULTANTS,3000059075,32213.00,"Independent modelling and assessment of benefits for Counter Fraud Checking Service project to inform Outline Business Case, and providing technical support in creation of the FED Functional Leadership Statement"
Cabinet Office,CABINET OFFICE,31/03/2015,PUBLICITY ADVERTISING MEDIA,GREAT CAMPAIGN PROGRAMME,RADLEY YELDAR LTD,3000059008,33307.50,GREAT Campaign
Cabinet Office,CABINET OFFICE,31/03/2015,CONTRACTORS & STAFF SUBSTITUTIONS,GDS PUBLISHING PLATFORM TECHNOLOGY,CAPITA BUSINESS SERVICES LTD,3000059028,33495.46,Interim IT Specialists 
Cabinet Office,CABINET OFFICE,31/03/2015,FM CONTRACT VARIABLE,PMO FACILITIES MANAGEMENT,BOUYGUES E&S FM UK LTD,3000059081,39836.92,Facilities Management Services
Cabinet Office,CABINET OFFICE,31/03/2015,GRANT FUND MANAGEMENT VAT RECOVERABLE,COMMUNITY FIRST,THE YOUNG FOUNDATION,r,50850.00,"Support to enable Community First Neighbourhood Matched Fund Panel volunteers to allocate grant funds effectively, share learning and best practice across the country, and build sustainable social capital and lasting community led associations in some of the most deprived areas in England"
Cabinet Office,CABINET OFFICE,31/03/2015,CONTRACTORS & STAFF SUBSTITUTIONS,GDS ID ASSURANCE,CAPITA BUSINESS SERVICES LTD,3000059028,63380.04,Interim IT Specialists 
Cabinet Office,CABINET OFFICE,31/03/2015,OTHER IS IT COSTS VAT RECOV,CO IT SYSTEMS,E SYNERGY SOLUTIONS LTD,3000059026,102570.00,Service Desk IT Support Staff
Cabinet Office,CABINET OFFICE,31/03/2015,OTHER LEGAL FEES,ERG DEBT MARKET INTEGRATOR,DLA PIPER UK,3000059024,143676.43,Legal services 
Cabinet Office,CABINET OFFICE,31/03/2015,OTHER LEGAL FEES,ERG COMMERCIAL PORTFOLIO TEAM,DLA PIPER UK,3000059059,175510.75,Legal services 
Cabinet Office,CABINET OFFICE,31/03/2015,ALL OTHER TRAINING AND DVEVELOPMENT NON VAT RECOVERABLE,FAST STREAM COSTS CS RESOURCING,HMRC,3000059058,976347.50,Fast stream programme costs
